bitfinex/quotes_ETHUSD_20241009
["timestamp","ask_amount","ask_price","bid_price","bid_amount"]
[1728510500891,0.04929861,2376.8,2376.6,4.20766]
[1728510501391,0.04929861,2376.8,2376.6,8.49940353]
[1728510501603,0.04929861,2376.8,2376.7,0.08413998]
[1728510501825,0.04929861,2376.8,2376.7,1.01515998]
[1728510502097,0.04929861,2376.8,2376.7,0.93102]
[1728510502296,1.83959269,2376.9,2376.7,0.93102]
[1728510502589,0.04929861,2376.8,2376.7,0.93102]
[1728510502829,0.04929861,2376.8,2376.7,5.22253258]
[1728510503532,1.83959269,2377.0,2376.7,5.22253258]
[1728510503829,0.04929861,2376.9,2376.8,0.94301326]
[1728510504921,0.04929861,2376.9,2376.8,1.72461326]
[1728510505324,0.04929861,2376.9,2376.8,0.94301326]
[1728510505621,0.04929861,2376.9,2376.6,4.2076]
[1728510505789,1.83959269,2376.8,2376.5,4.20781]
[1728510506382,0.04929861,2376.7,2376.5,4.20781]
[1728510506587,0.04929861,2376.7,2376.6,0.841574]
[1728510506787,8.41455,2376.9,2376.4,4.20793]
[1728510506990,0.04929861,2376.7,2376.4,4.20793]
[1728510507197,8.41455,2376.9,2376.4,4.20793]
[1728510507725,0.04929861,2376.8,2376.4,4.20793]
[1728510510427,4.25672861,2376.8,2376.3,0.20969772]
[1728510510591,3.343042,2376.6,2376.3,1.6141943]
[1728510510926,4.2061,2377.5,2377.0,5.01868]
[1728510511130,4.20628,2377.4,2377.0,0.8118]
[1728510511330,4.2061,2377.5,2377.1,0.08412454]
[1728510511626,4.3244262,2377.7,2377.1,0.08412454]
[1728510511627,4.20593,2377.6,2377.1,0.08412454]
[1728510513727,4.20609,2377.5,2377.1,0.08412454]
[1728510514800,0.1185462,2377.7,2377.2,4.20648]
[1728510515040,8.41207,2377.6,2377.1,4.20679]
[1728510515243,8.41207,2377.6,2377.1,5.60921973]
[1728510515916,4.20639,2377.4,2376.9,4.42280611]
[1728510516123,8.41282,2377.4,2376.9,4.42280611]
[1728510516418,4.20645,2377.3,2376.9,0.21566611]
[1728510518007,4.20645,2377.3,2377.0,0.08413063]
[1728510518314,0.04714534,2377.2,2377.0,0.08413063]
[1728510518519,4.20645,2377.3,2376.9,0.21566611]
[1728510518717,4.25382534,2377.2,2376.9,0.21566611]
[1728510522047,0.7576,2377.1,2376.9,0.21566611]
[1728510522620,0.04714534,2377.0,2376.9,0.21566611]
[1728510523225,4.20668,2377.2,2376.9,0.21566611]
[1728510523847,0.04714534,2377.1,2376.9,0.21566611]
[1728510524952,0.04714534,2377.1,2376.8,0.08413778]
[1728510525448,0.04714534,2377.1,2376.7,4.29163782]
[1728510525826,4.25399534,2377.1,2376.6,0.83]
[1728510526023,4.207,2377.0,2376.6,5.03766]
[1728510526231,0.824,2376.9,2376.7,0.20848072]
[1728510526428,0.8713675,2376.9,2376.7,0.20848072]
[1728510528116,0.8713675,2376.9,2376.5,4.20769]
[1728510528657,5.0785275,2376.9,2376.5,4.20769]
[1728510528844,5.0785275,2376.9,2376.6,0.20827015]
[1728510529312,4.2545275,2376.9,2376.6,0.20827015]
[1728510540231,0.0473675,2376.9,2376.6,0.20827015]
[1728510540572,4.20701,2377.0,2376.6,0.20827015]
[1728510540772,0.0470121,2376.9,2376.6,0.20827015]
[1728510540975,0.8226,2376.8,2376.6,0.20827015]
[1728510541267,0.8226,2376.8,2376.4,4.20803]
[1728510541450,0.0470121,2376.7,2376.4,4.20803]
[1728510541834,0.8226,2376.8,2376.4,4.20803]
[1728510542042,0.0470121,2376.6,2376.5,4.20784]
[1728510542539,0.8226,2376.8,2376.5,4.20784]
[1728510542747,0.0470121,2376.7,2376.5,4.20784]
[1728510542936,0.8226,2376.8,2376.5,4.20784]
[1728510543143,0.0470121,2376.7,2376.5,4.20784]
[1728510543471,0.8226,2376.8,2376.5,5.0709668]
[1728510543637,0.0470121,2376.6,2376.5,5.0709668]
[1728510543838,0.8226,2376.8,2376.5,5.0709668]
[1728510544144,0.8226,2376.8,2376.5,4.20784]
[1728510544345,0.0470121,2376.7,2376.5,4.20784]
[1728510544545,0.8226,2376.8,2376.5,4.20784]
[1728510544781,0.0470121,2376.7,2376.5,4.20784]
[1728510544946,0.8226,2376.8,2376.5,4.20784]
[1728510545147,0.0470121,2376.7,2376.5,4.20784]
[1728510545358,0.8226,2376.8,2376.5,4.20784]
[1728510545557,0.0470121,2376.7,2376.5,4.20784]
[1728510545762,0.8226,2376.8,2376.5,4.20784]
[1728510546094,0.0470121,2376.7,2376.5,4.20784]
[1728510546389,0.8226,2376.8,2376.5,4.20784]
[1728510546568,0.0470121,2376.6,2376.5,4.20784]
[1728510546771,0.8226,2376.8,2376.5,4.20784]
[1728510546982,0.0470121,2376.7,2376.5,4.20784]
[1728510547156,0.8226,2376.8,2376.5,4.20784]
[1728510547358,0.0470121,2376.7,2376.5,4.20784]
[1728510547594,0.8226,2376.8,2376.5,4.20784]
[1728510547778,0.0470121,2376.6,2376.5,4.20784]
[1728510547981,0.8226,2376.8,2376.5,4.20784]
[1728510548158,0.0470121,2376.7,2376.5,4.20784]
[1728510548496,0.8226,2376.8,2376.6,4.20769]
[1728510548708,0.8091,2377.1,2376.6,0.8631118]
[1728510548891,18.25773,2377.6,2377.1,4.2068]
[1728510549372,22.46375,2377.6,2377.1,4.2068]
[1728510549576,18.25773,2377.6,2377.1,4.2068]
[1728510549774,22.46378,2377.6,2377.1,4.2068]
[1728510549981,24.90597189,2377.6,2377.1,4.2068]
[1728510551959,4.20618,2377.5,2377.1,4.2068]
[1728510552274,0.04542086,2377.4,2377.1,4.2068]
[1728510553935,0.7503,2377.3,2377.1,4.2068]
[1728510554306,0.04542086,2377.2,2377.1,4.2068]
[1728510554511,6.79600269,2377.5,2377.1,5.838087]
[1728510554833,0.04542086,2377.4,2377.1,4.9967]
[1728510556240,0.04542086,2377.4,2377.1,4.99662]
[1728510556530,0.04542086,2377.4,2377.1,4.9966]
[1728510557132,0.04542086,2377.4,2377.1,9.20331]
[1728510557434,0.04542086,2377.4,2377.1,4.9966]
[1728510558139,0.04542086,2377.4,2377.3,4.99795]
[1728510558297,0.1185462,2377.7,2377.6,4.20592]
[1728510558497,0.16396706,2377.7,2377.6,4.20592]
[1728510561656,0.16396706,2377.7,2377.6,8.09941647]
[1728510561861,0.16396706,2377.7,2377.6,9.51392639]
[1728510562057,0.1185462,2377.7,2377.6,9.51392639]
[1728510564279,0.1185462,2377.7,2377.6,14.64706761]
[1728510564448,0.1185462,2377.7,2377.6,14.85487107]
[1728510565146,0.1185462,2377.7,2377.6,17.94044243]
[1728510565382,1.83959269,2379.0,2378.6,4.20401]
[1728510565582,0.04605446,2378.9,2378.6,4.20401]
[1728510565877,0.04605446,2378.9,2378.5,8.40856]
[1728510566172,0.7689,2378.8,2378.5,4.20423]
[1728510566476,0.7689,2378.8,2378.4,4.20449]
[1728510566770,0.7689,2378.8,2378.3,4.20456]
[1728510566771,0.04605446,2378.7,2378.3,4.20456]
[1728510566972,0.7689,2378.8,2378.3,6.48922215]
[1728510567196,0.04605446,2378.7,2378.3,6.48922215]
[1728510567337,0.7689,2378.8,2378.3,6.48922215]
[1728510567538,0.04605446,2378.7,2378.4,4.20442]
[1728510567843,0.7689,2378.8,2378.3,10.69381215]
[1728510568042,0.04605446,2378.6,2378.3,6.48922215]
[1728510568242,0.7689,2378.8,2378.4,4.93098221]
[1728510568463,0.04605446,2378.5,2378.4,0.72652221]
[1728510568717,0.7689,2378.8,2378.4,0.72652221]
[1728510569160,0.04605446,2378.7,2378.4,0.72652221]
[1728510569356,0.7689,2378.8,2378.4,0.72652221]
[1728510569563,0.7689,2378.8,2378.3,8.40913]
[1728510569564,0.04605446,2378.7,2378.3,4.20454]
[1728510569776,4.9727,2378.8,2378.3,4.20454]
[1728510570081,0.04605446,2378.7,2378.3,4.20454]
[1728510570380,4.9727,2378.8,2378.3,4.20454]
[1728510570692,0.04605446,2378.7,2378.3,4.20454]
[1728510570858,0.04605446,2378.7,2378.3,5.123094]
[1728510571060,4.9727,2378.8,2378.3,5.123094]
[1728510571260,0.04605446,2378.6,2378.3,5.123094]
[1728510571563,0.04605446,2378.5,2378.3,5.123094]
[1728510571762,4.9727,2378.8,2378.3,5.123094]
[1728510571973,0.04605446,2378.7,2378.3,4.20454]
[1728510572311,4.9727,2378.8,2378.3,4.20454]
[1728510572771,0.04605446,2378.7,2378.3,4.20454]
[1728510572972,4.9727,2378.8,2378.3,4.28862191]
[1728510573173,0.04605446,2378.7,2378.3,4.28862191]
[1728510573373,4.9727,2378.8,2378.3,5.2155841]
[1728510573585,0.04605446,2378.7,2378.3,5.2155841]
[1728510573899,4.9727,2378.8,2378.3,5.2155841]
[1728510574063,0.04605446,2378.6,2378.3,4.28862191]
[1728510574393,4.9727,2378.8,2378.3,4.28862191]
[1728510574394,4.9727,2378.8,2378.3,0.08408191]
[1728510574616,4.20415,2378.6,2378.3,0.0840819]
[1728510574958,9.17665,2378.8,2378.3,0.0840819]
[1728510575163,0.04605446,2378.7,2378.3,4.2887519]
[1728510575398,9.17665,2378.8,2378.3,4.2887519]
[1728510575572,0.04605446,2378.7,2378.3,4.2887519]
[1728510575778,9.17665,2378.8,2378.3,4.2887519]
[1728510575973,0.04605446,2378.7,2378.3,4.2887519]
[1728510576231,4.9727,2378.8,2378.3,9.44103917]
[1728510576432,0.04605446,2378.6,2378.4,0.08407836]
[1728510576636,4.9727,2378.8,2378.4,0.08407836]
[1728510576838,0.04605446,2378.5,2378.4,0.08407836]
[1728510577046,4.9727,2378.8,2378.4,0.08407836]
[1728510577744,0.04605446,2378.7,2378.4,0.08407836]
[1728510577910,0.04605446,2378.7,2378.4,4.28857836]
[1728510578244,0.04747666,2378.6,2378.4,4.28857836]
[1728510578601,4.9727,2378.8,2378.4,4.28857836]
[1728510578798,0.04747666,2378.7,2378.5,4.20424]
[1728510582328,0.04747666,2378.5,2378.4,5.19482043]
[1728510582661,7.42,2379.3,2378.4,5.19482043]
[1728510582662,17.43256,2379.5,2378.9,0.8048]
[1728510582837,4.20256,2379.5,2378.9,0.8048]
[1728510583162,4.20282,2379.4,2378.9,40.00832]
[1728510583326,4.20256,2379.5,2379.0,4.20344]
[1728510583698,8.40522,2379.5,2379.0,4.20344]
[1728510583821,4.20256,2379.5,2379.0,4.2033]
[1728510584022,0.826,2379.6,2379.0,4.2033]
[1728510584265,5.02847,2379.6,2379.1,4.20324]
[1728510584464,9.23102,2379.6,2379.1,5.61774992]
[1728510585324,9.231,2379.6,2379.1,5.61774992]
[1728510586424,4.20261,2379.5,2379.1,1.41450992]
[1728510586627,4.20277,2379.4,2379.0,4.2033]
[1728510587365,4.20277,2379.4,2378.8,4.41147083]
[1728510587577,4.2031,2379.2,2378.8,4.41147083]
[1728510587736,4.99573,2379.3,2378.8,8.61517083]
[1728510587940,4.99573,2379.3,2378.9,1.39524121]
[1728510588444,4.20293,2379.3,2378.9,1.39524121]
[1728510588838,4.20293,2379.3,2379.0,0.7504]
[1728510589749,4.20293,2379.3,2378.8,4.20366]
[1728510589943,0.7648,2379.2,2378.8,4.20366]
[1728510590176,0.7648,2379.2,2378.8,5.58465112]
[1728510590979,4.20266,2379.5,2378.9,5.02964117]
[1728510591135,4.20266,2379.5,2379.0,4.20332]
[1728510591479,8.40531,2379.5,2379.0,4.20332]
[1728510592180,0.7915,2379.2,2378.8,4.20379]
[1728510592344,0.7915,2379.2,2378.8,5.58566712]
[1728510592545,4.20277,2379.4,2378.9,4.20355]
[1728510592771,4.20277,2379.4,2379.0,4.20343]
[1728510594672,4.20277,2379.4,2378.9,4.20347]
[1728510597368,0.04841461,2379.3,2378.9,4.20347]
[1728510597561,0.04841461,2379.3,2378.9,5.72349783]
[1728510597762,0.04841461,2379.3,2378.9,1.52002783]
[1728510598056,4.25140461,2379.3,2378.9,1.52002783]
[1728510599349,4.25140461,2379.3,2378.9,5.80768914]
[1728510600280,0.8297,2379.2,2378.9,4.28766131]
[1728510600478,0.8297,2379.2,2378.7,4.58314122]
[1728510600677,0.04837023,2379.1,2378.7,9.58083122]
[1728510601092,5.0328,2379.2,2378.7,9.58083122]
[1728510601276,0.04833694,2379.0,2378.8,1.37848712]
[1728510601607,0.04833694,2378.9,2378.8,1.37848712]
[1728510601801,5.0328,2379.2,2378.8,1.37848712]
[1728510602100,0.04833694,2379.1,2378.8,1.37848712]
[1728510602661,0.04833694,2379.1,2378.8,5.58223712]
[1728510603202,9.23604,2379.2,2378.8,0.08406181]
[1728510603405,5.0328,2379.2,2378.8,0.08406181]
[1728510603616,0.04833694,2379.1,2378.8,0.08406181]
[1728510605274,4.25160694,2379.1,2378.8,0.08406181]
[1728510606315,8.45500694,2379.1,2378.7,0.08406719]
[1728510606465,4.96048,2379.0,2378.7,0.08406719]
[1728510606665,5.00853394,2379.0,2378.5,46.40842]
[1728510606901,5.00853394,2379.0,2378.6,4.10264826]
[1728510607559,5.00853394,2379.0,2378.5,9.23541]
[1728510608159,4.96048,2379.0,2378.5,9.23541]
[1728510608364,4.96048,2379.0,2378.5,5.03118]
[1728510608564,0.04800399,2378.9,2378.5,5.03118]
[1728510608765,0.04800399,2378.9,2378.6,4.2881795]
[1728510609326,0.04800399,2378.8,2378.6,8.39082776]
[1728510609467,0.04800399,2378.8,2378.7,0.08406956]
[1728510609666,4.96043,2379.0,2378.7,0.08406956]
[1728510610187,0.04800399,2378.9,2378.7,0.08406956]
[1728510612224,0.04800399,2378.9,2378.6,4.20411]
[1728510612414,0.04800399,2378.9,2378.5,40.03132]
[1728510612610,0.04800399,2378.9,2378.6,4.10264826]
[1728510613013,0.04800399,2378.9,2378.7,0.0840701]
[1728510613825,0.7569,2379.0,2378.7,0.0840701]
[1728510614234,0.04800399,2378.9,2378.7,0.0840701]
[1728510614993,0.04800399,2378.9,2378.6,0.55]
[1728510615218,0.04800399,2378.9,2378.8,4.2038]
[1728510616020,0.04800399,2378.9,2378.8,4.25339694]
[1728510616582,0.04800399,2378.9,2378.8,4.27712321]
[1728510616785,0.04800399,2378.9,2378.8,8.37977147]
[1728510616982,4.20323,2379.2,2378.8,8.30644826]
[1728510617182,4.20323,2379.2,2378.9,0.07332014]
[1728510618800,4.20323,2379.2,2378.8,4.2038]
[1728510620046,4.20339,2379.1,2378.7,35.0]
[1728510620247,4.20339,2379.1,2378.7,39.0031]
[1728510620754,2.64608479,2379.3,2378.7,39.0031]
[1728510620956,6.84900479,2379.3,2378.7,39.0031]
[1728510621436,6.84900479,2379.3,2378.7,4.0031]
[1728510621623,6.84900479,2379.3,2378.5,9.2354]
[1728510621828,6.84900479,2379.3,2378.6,35.0]
[1728510622464,6.84900479,2379.3,2378.7,0.06038814]
[1728510624053,5.01532,2379.3,2378.7,0.06038814]
[1728510625259,5.01532,2379.3,2378.8,0.06306409]
[1728510625613,0.7884,2379.2,2378.7,0.06038814]
[1728510625937,0.7884,2379.2,2378.2,4.74766643]
[1728510625938,4.20382,2378.8,2378.1,3.86914907]
[1728510626115,0.7884,2378.7,2378.1,3.86914907]
[1728510626313,0.7884,2378.7,2378.1,3.0]
[1728510626514,0.7884,2378.7,2378.2,1.34549703]
[1728510627323,0.04785969,2378.6,2378.2,1.34549703]
[1728510629737,0.04785969,2378.6,2377.9,0.86914907]
[1728510629941,0.7951,2378.4,2377.8,4.95585]
[1728510630140,0.7951,2378.4,2377.8,4.20545]
[1728510630450,0.7951,2378.2,2377.8,4.20545]
[1728510630645,0.7951,2378.2,2377.8,4.10264826]
[1728510631050,0.04721013,2378.1,2377.7,4.20574]
[1728510631679,0.7951,2378.2,2377.7,4.20574]
[1728510631882,0.7951,2378.2,2377.5,35.0]
[1728510632083,0.7951,2378.2,2377.6,7.20591]
[1728510632437,0.08476583,2378.1,2377.7,4.20566]
[1728510632658,0.7951,2378.2,2377.7,1.141157]
[1728510632891,0.08476583,2378.1,2377.7,1.141157]
[1728510633275,0.7951,2378.2,2377.7,1.141157]
[1728510633485,0.08476583,2378.1,2377.7,1.141157]
[1728510633888,0.7951,2378.2,2377.7,5.346827]
[1728510634162,0.7951,2378.2,2377.8,1.2552577]
[1728510635671,0.7951,2378.2,2377.7,4.20567]
[1728510635867,0.7951,2378.2,2377.6,7.20575]
[1728510636267,0.7951,2378.2,2377.6,11.41158]
[1728510636489,0.7951,2378.2,2377.7,4.2057]
[1728510636697,0.7951,2378.2,2377.6,7.20575]
[1728510636907,0.7951,2378.2,2377.6,8.30839826]
[1728510637105,0.08476583,2378.1,2377.6,8.30839826]
[1728510637506,1.83368479,2378.3,2377.6,8.30839826]
[1728510637694,0.8059,2378.2,2377.6,4.20575]
[1728510637904,0.89066583,2378.2,2377.6,4.20575]
[1728510638267,0.89066583,2378.2,2377.6,8.41154]
[1728510638598,0.89066583,2378.2,2377.6,4.20575]
[1728510638989,0.89066583,2378.2,2377.7,4.20571]
[1728510641072,1.58356689,2378.2,2377.6,8.41155]
[1728510641588,0.7728,2378.1,2377.6,8.41155]
[1728510642000,0.7728,2377.9,2377.6,4.20575]
[1728510642199,0.7728,2377.9,2377.4,4.20615]
[1728510642607,0.8115,2377.7,2377.3,7.20636]
[1728510643115,0.08417706,2377.6,2377.3,7.20636]
[1728510643493,0.8115,2377.7,2377.3,7.20636]
[1728510644020,0.08417706,2377.6,2377.3,7.20636]
[1728510644420,0.8115,2377.7,2377.3,11.41272]
[1728510644724,0.08411038,2377.6,2377.3,15.51532826]
[1728510645116,0.8115,2377.7,2377.3,15.51532826]
[1728510645494,0.08411038,2377.6,2377.3,15.51532826]
[1728510645887,0.8115,2377.7,2377.3,15.51532826]
[1728510646091,0.08407704,2377.6,2377.3,15.51532826]
[1728510646534,0.8115,2377.7,2377.3,11.41268]
[1728510646827,0.08407704,2377.5,2377.4,4.20627]
[1728510647038,0.8115,2377.7,2377.6,4.20592]
[1728510647328,0.89557148,2377.7,2377.6,4.20592]
[1728510647509,0.89557148,2377.7,2377.6,5.047121]
[1728510647718,0.08407148,2377.7,2377.6,5.047121]
[1728510648028,0.7547,2377.9,2377.6,5.047121]
[1728510648205,0.08410482,2377.8,2377.6,5.047121]
[1728510648405,0.08410482,2377.8,2377.7,4.20574]
[1728510649243,0.08410482,2377.8,2377.7,5.1310261]
[1728510649841,0.8307,2378.1,2377.7,0.9252861]
[1728510650046,0.8307,2378.4,2378.1,4.20489]
[1728510650252,7.42,2379.2,2378.5,4.20433]
[1728510650453,1.83368479,2378.9,2378.3,0.55]
[1728510650609,1.83368479,2378.9,2378.7,4.20385]
[1728510651551,0.7802,2379.1,2378.8,4.20378]
[1728510651843,2.61388479,2379.1,2378.8,4.20378]
[1728510653604,0.7802,2379.1,2378.8,5.044543]
[1728510653807,0.7802,2379.1,2378.9,4.20348]
[1728510656319,0.7556,2379.4,2378.9,4.20348]
[1728510656656,1.83368479,2379.2,2378.9,4.20348]
[1728510657453,0.08469909,2379.1,2378.9,4.20348]
[1728510659457,1.83368479,2379.2,2378.9,4.20348]
[1728510659762,0.08469909,2379.1,2378.9,4.20348]
[1728510659913,0.08469909,2379.1,2378.9,5.344206]
[1728510660714,1.83368479,2379.2,2378.9,5.344206]
[1728510661042,0.08469909,2379.1,2378.9,5.344206]
[1728510661241,1.83368479,2379.2,2378.9,5.344206]
[1728510661416,0.08469909,2379.1,2379.0,4.20344]
[1728510661619,1.83368479,2379.2,2379.0,4.20344]
[1728510661846,0.08469909,2379.1,2379.0,4.20344]
[1728510662041,1.83368479,2379.2,2379.0,4.20344]
[1728510662270,0.08469909,2379.1,2379.0,4.20344]
[1728510662424,1.83368479,2379.2,2379.0,4.20344]
[1728510662761,0.08469909,2379.1,2379.0,4.20344]
[1728510663264,1.83368479,2379.2,2379.0,4.20344]
[1728510663425,0.08469909,2379.1,2379.0,4.20344]
[1728510663624,1.83368479,2379.2,2379.0,4.20344]
[1728510664021,0.08469909,2379.1,2379.0,4.20344]
[1728510664223,1.83368479,2379.2,2379.0,4.20344]
[1728510664531,0.08469909,2379.1,2379.0,4.20344]
[1728510664871,1.83368479,2379.2,2379.0,4.20344]
[1728510665024,0.08469909,2379.1,2379.0,4.20344]
[1728510665361,1.83368479,2379.5,2379.0,0.9547646]
[1728510665524,1.83368479,2379.5,2379.1,4.20326]
[1728510665870,0.08469909,2379.4,2379.2,4.20307]
[1728510666159,1.83368479,2379.5,2379.2,4.20307]
[1728510666320,0.08469909,2379.3,2379.2,4.20307]
[1728510666520,1.83368479,2379.5,2379.2,5.13917146]
[1728510666760,0.08469909,2379.3,2379.2,5.01797]
[1728510666932,13.23,2379.8,2379.5,4.20245]
[1728510667256,14.11223099,2380.1,2379.6,4.20233]
[1728510667257,1.95223099,2380.1,2379.6,4.20233]
[1728510667468,0.08580951,2379.7,2379.6,4.20233]
[1728510667624,1.83368479,2379.9,2379.6,4.20233]
[1728510668127,0.08580951,2379.8,2379.6,4.20233]
[1728510670989,0.08580951,2379.8,2379.5,8.40491]
[1728510671186,0.08580951,2379.8,2379.5,0.840491]
[1728510671387,0.08580951,2379.8,2379.7,4.20221]
[1728510671992,0.82921345,2380.0,2379.7,4.20221]
[1728510672490,0.08580951,2379.9,2379.7,4.20221]
[1728510673494,0.08580951,2379.9,2379.8,4.20203]
[1728510675478,0.08580951,2379.9,2379.8,5.124794]
[1728510684953,0.08580951,2379.9,2379.8,5.14892635]
[1728510685780,0.08580951,2379.9,2379.8,4.20203]
[1728510689727,0.08580951,2379.9,2379.8,4.75203]
[1728510690143,0.08580951,2379.9,2379.8,7.75203]
[1728510690346,0.03861345,2380.0,2379.8,7.75203]
[1728510690650,0.03861345,2380.0,2379.9,7.20185]
[1728510690844,0.03861345,2380.0,2379.9,9.35455912]
[1728510693251,0.03861345,2380.0,2379.9,9.90455912]
[1728510693880,0.03861345,2380.0,2379.9,10.71965912]
[1728510697718,0.03861345,2380.0,2379.9,10.89294312]
[1728510698235,0.03861345,2380.0,2379.9,11.1003125]
[1728510698434,0.03861345,2380.0,2379.9,45.9270285]
[1728510699357,0.03861345,2380.0,2379.9,47.76071329]
[1728510701167,0.03861345,2380.0,2379.9,45.9270285]
[1728510701318,0.03861345,2380.0,2379.9,47.76071329]
[1728510702628,0.03861345,2380.0,2379.9,62.19820356]
[1728510702830,0.03861345,2380.0,2379.9,63.0600269]
[1728510703438,0.03861345,2380.0,2379.9,62.19820356]
[1728510703625,0.03861345,2380.0,2379.9,61.22634211]
[1728510703945,0.03861345,2380.0,2379.9,60.36451877]
[1728510704143,0.03861345,2380.0,2379.9,62.35247563]
[1728510704349,0.03861345,2380.0,2379.9,61.49065229]
[1728510707456,0.03861345,2380.0,2379.9,52.16857729]
[1728510716773,0.03861345,2380.0,2379.9,47.76071329]
[1728510716967,0.03861345,2380.0,2379.9,65.05446929]
[1728510718612,0.03861345,2380.0,2379.9,52.07616429]
[1728510720586,0.03861345,2380.0,2379.9,52.49826429]
[1728510721113,0.03861345,2380.0,2379.9,50.6645795]
[1728510721285,0.03861345,2380.0,2379.9,52.49826429]
[1728510722098,0.03861345,2380.0,2379.9,53.36008763]
[1728510725622,0.03861345,2380.0,2379.9,53.36099905]
[1728510727721,0.03861345,2380.0,2379.9,66.82275705]
[1728510728590,0.03861345,2380.0,2379.9,65.96002229]
[1728510729177,0.03861345,2380.0,2379.9,67.25412443]
[1728510731120,0.03861345,2380.0,2379.9,67.56269307]
[1728510731284,0.03861345,2380.0,2379.9,67.56271768]
[1728510732100,0.03861345,2380.0,2379.9,66.26861554]
[1728510732719,0.03861345,2380.0,2379.9,65.96002229]
[1728510732926,0.03861345,2380.0,2379.9,66.26874143]
[1728510733186,0.03861345,2380.0,2379.9,67.99421095]
[1728510734228,0.03861345,2380.0,2379.9,54.49317295]
[1728510735284,0.03861345,2380.0,2379.9,52.76770343]
[1728510735687,0.03861345,2380.0,2379.9,54.49868368]
[1728510736293,0.03861345,2380.0,2379.9,54.93114645]
[1728510736504,0.03861345,2380.0,2379.9,54.62242731]
[1728510736727,0.10715965,2380.1,2380.0,8.13314122]
[1728510737029,0.10715965,2380.1,2380.0,31.4890082]
[1728510737526,0.10715965,2380.1,2380.0,66.4890082]
[1728510737835,0.10715965,2380.1,2380.0,62.4690242]
[1728510738140,0.10715965,2380.1,2380.0,52.3169942]
[1728510738310,0.10715965,2380.1,2380.0,62.2931942]
[1728510738816,0.10715965,2380.1,2380.0,52.3169942]
[1728510739331,0.10715965,2380.1,2380.0,62.3503142]
[1728510739930,0.10715965,2380.1,2380.0,62.35056163]
[1728510740897,0.10715965,2380.1,2380.0,62.78484671]
[1728510742390,0.10715965,2380.1,2380.0,63.80235971]
[1728510743223,0.10715965,2380.1,2380.0,61.63703056]
[1728510743426,0.10715965,2380.1,2380.0,63.80332068]
[1728510744333,0.10715965,2380.1,2380.0,63.80390546]
[1728510744533,0.10715965,2380.1,2380.0,61.63703056]
[1728510744701,0.10715965,2380.1,2380.0,63.80399825]
[1728510744900,0.10715965,2380.1,2380.0,55.03301625]
[1728510745120,0.10715965,2380.1,2380.0,52.86604856]
[1728510745348,0.10715965,2380.1,2380.0,54.65829508]
[1728510748242,0.10715965,2380.1,2380.0,54.72132876]
[1728510748770,0.10715965,2380.1,2380.0,52.44147776]
[1728510749098,0.10715965,2380.1,2380.0,66.18118092]
[1728510749823,0.10715965,2380.1,2380.0,66.18156812]
[1728510752332,0.10715965,2380.1,2380.0,63.45841796]
[1728510754272,0.10715965,2380.1,2380.0,52.44186496]
[1728510754574,0.10715965,2380.1,2380.0,64.89824596]
[1728510755076,0.10715965,2380.1,2380.0,63.45841796]
[1728510756386,0.10715965,2380.1,2380.0,54.46955296]
[1728510756875,0.10715965,2380.1,2380.0,54.46954004]
[1728510757260,0.10715965,2380.1,2380.0,52.44185204]
[1728510757577,0.10715965,2380.1,2380.0,63.45740504]
[1728510758837,0.10715965,2380.1,2380.0,52.44185204]
[1728510759061,0.10715965,2380.1,2380.0,63.52444504]
[1728510759265,0.10715965,2380.1,2380.0,52.44185204]
[1728510759442,0.10715965,2380.1,2380.0,63.45730504]
[1728510760803,0.10715965,2380.1,2380.0,67.14616204]
[1728510761696,0.10715965,2380.1,2380.0,66.69207304]
[1728510763666,0.10715965,2380.1,2380.0,66.38238149]
[1728510763866,0.10715965,2380.1,2380.0,66.69220763]
[1728510765141,0.10715965,2380.1,2380.0,52.44198663]
[1728510765342,0.10715965,2380.1,2380.0,63.71269363]
[1728510765703,0.10715965,2380.1,2380.0,52.44198663]
[1728510765902,0.10715965,2380.1,2380.0,52.81855113]
[1728510766105,0.10715965,2380.1,2380.0,52.44288986]
[1728510766339,0.10715965,2380.1,2380.0,67.62069186]
[1728510766547,0.10715965,2380.1,2380.0,66.83278386]
[1728510766697,0.10715965,2380.1,2380.0,66.61568186]
[1728510767263,0.10715965,2380.1,2380.0,63.59454386]
[1728510768860,0.87025965,2380.1,2380.0,63.53151018]
[1728510769009,0.87025965,2380.1,2380.0,9.64464736]
[1728510769205,0.87025965,2380.1,2380.0,11.37994643]
[1728510769446,0.87025965,2380.1,2380.0,11.81350873]
[1728510769768,0.87025965,2380.1,2380.0,46.81350873]
[1728510769906,0.87025965,2380.1,2380.0,48.00719543]
[1728510770455,0.87025965,2380.1,2380.0,51.00719543]
[1728510771148,0.87025965,2380.1,2380.0,51.00717741]
[1728510774667,0.87025965,2380.1,2380.0,50.69736929]
[1728510774976,0.87025965,2380.1,2380.0,51.00711796]
[1728510778280,0.87025965,2380.1,2380.0,50.69736929]
[1728510778776,0.87025965,2380.1,2380.0,51.00718522]
[1728510781787,0.87025965,2380.1,2380.0,12.64463715]
[1728510781949,0.10715965,2380.1,2380.0,12.64463715]
[1728510784702,0.10715965,2380.1,2380.0,12.33482122]
[1728510785004,0.10715965,2380.1,2380.0,14.38185068]
[1728510785296,0.10715965,2380.1,2380.0,9.79870946]
[1728510785798,0.10715965,2380.1,2380.0,44.79870946]
[1728510785992,0.91095965,2380.1,2380.0,44.24870946]
[1728510786360,0.91095965,2380.1,2380.0,6.24870946]
[1728510786699,0.91095965,2380.1,2380.0,5.93858223]
[1728510786925,0.91095965,2380.1,2380.0,6.24884938]
[1728510787402,0.91095965,2380.1,2380.0,5.93858223]
[1728510788723,0.99510682,2380.1,2380.0,5.93858223]
[1728510789083,0.91095965,2380.1,2380.0,5.93858223]
[1728510789508,0.99510682,2380.1,2380.0,5.93858223]
[1728510790115,0.99510682,2380.1,2380.0,4.20168]
[1728510796329,0.91095965,2380.1,2380.0,4.20168]
[1728510796740,0.9949346,2380.1,2380.0,4.20168]
[1728510807761,0.9949346,2380.1,2379.8,4.20203]
[1728510807955,0.9949346,2380.1,2379.9,4.20185]
[1728510808198,0.9949346,2380.1,2379.8,4.20203]
[1728510808199,0.9949346,2380.1,2379.8,8.40394]
[1728510808354,0.8079,2380.0,2379.8,8.40385]
[1728510808556,0.8079,2380.0,2379.8,4.20191]
[1728510808854,0.08366938,2379.9,2379.8,4.20191]
[1728510813965,0.89516938,2379.9,2379.8,4.20191]
[1728510814173,0.8115,2379.9,2379.8,4.20191]